bitfinex-derivatives/quotes_ETHF0:USTF0_20250621
["timestamp","ask_amount","ask_price","bid_price","bid_amount"]
[1750534046445,8.25759026,2396.4,2396.2,4.04226]
[1750534046643,0.83441,2396.4,2396.2,4.04226]
[1750534046855,2.1213,2396.5,2396.3,0.83445]
[1750534047052,7.42318026,2396.4,2396.3,0.83445]
[1750534050257,8.25759026,2396.4,2396.3,0.83445]
[1750534050654,7.42318026,2396.4,2396.3,0.83445]
[1750534051155,8.25759026,2396.4,2396.3,0.83445]
[1750534053156,7.42318026,2396.4,2396.3,0.83445]
[1750534053455,8.25759026,2396.4,2396.3,0.83445]
[1750534054259,7.42318026,2396.4,2396.3,0.83445]
[1750534054459,0.83437,2396.6,2396.5,0.83438]
[1750534054659,0.83437,2396.6,2396.5,4.04218]
[1750534054859,8.25755026,2396.6,2396.5,4.04218]
[1750534055361,9.67975026,2396.6,2396.5,4.04218]
[1750534056062,9.67975026,2396.6,2396.5,0.83438]
[1750534056254,0.83438,2396.5,2396.4,0.8344]
[1750534056454,8.25758026,2396.5,2396.4,4.04221]
[1750534056756,1.3876,2396.5,2396.4,4.04221]
[1750534056962,2.22198,2396.5,2396.4,4.04221]
[1750534057259,2.22198,2396.5,2396.4,3.2078]
[1750534057460,1.3876,2396.5,2396.4,4.04221]
[1750534059066,1.3876,2396.5,2396.4,0.83441]
[1750534059361,8.81078026,2396.5,2396.4,4.04221]
[1750534059563,9.64516026,2396.5,2396.3,0.83443]
[1750534059760,7.42318026,2396.4,2396.3,0.83443]
[1750534059949,8.82688026,2396.4,2396.3,0.83443]
[1750534060157,1.47217599,2396.4,2396.3,0.83443]
[1750534060358,0.83448,2396.2,2396.1,3.2078]
[1750534060562,10.06877534,2396.2,2395.8,4.04241]
[1750534060762,7.42318026,2395.9,2395.8,4.0424]
[1750534061062,8.25778026,2395.9,2395.7,1.53984]
[1750534061257,7.42318026,2395.8,2395.7,1.53984]
[1750534062058,2.2383,2395.9,2395.7,1.53984]
[1750534062253,7.42318026,2395.8,2395.7,0.7052]
[1750534062665,10.06877534,2395.8,2395.5,3.2078]
[1750534062859,8.25787026,2395.6,2395.5,3.2078]
[1750534063566,8.95257026,2395.6,2395.5,3.2078]
[1750534063765,9.42518026,2395.6,2395.5,4.04253]
[1750534064465,8.1507485,2396.1,2395.5,3.2078]
[1750534064665,7.42318026,2395.6,2395.5,4.04253]
[1750534065060,0.83466,2395.7,2395.5,4.04253]
[1750534065260,7.42318026,2395.6,2395.5,4.04253]
[1750534065964,0.83461,2395.9,2395.7,0.83463]
[1750534066160,7.42318026,2395.8,2395.7,2.08129916]
[1750534066464,0.83458,2396.0,2395.8,4.04241]
[1750534066661,8.3485,2396.3,2395.9,0.83455]
[1750534066662,0.8345,2396.2,2395.9,0.83455]
[1750534066867,7.42318026,2396.1,2395.8,4.45446916]
[1750534067365,8.25770026,2396.1,2395.9,0.83457]
[1750534067758,7.42318026,2396.1,2396.0,0.83455]
[1750534067958,9.0148,2396.3,2396.2,0.83448]
[1750534067959,2.0178,2396.3,2396.2,0.83448]
[1750534068160,7.42318026,2396.1,2396.0,2.48140572]
[1750534068659,0.83448,2396.2,2396.0,2.48140572]
[1750534068860,7.42318026,2396.1,2396.0,2.48140572]
[1750534069268,7.42318026,2396.1,2395.9,3.2078]
[1750534069467,7.42318026,2396.0,2395.9,1.64685572]
[1750534069669,7.42318026,2396.0,2395.9,4.04239]
[1750534069967,8.25773026,2396.0,2395.9,4.85465572]
[1750534070268,7.42318026,2396.0,2395.9,5.68924572]
[1750534070868,8.25773026,2396.0,2395.9,4.85465572]
[1750534072269,7.42318026,2396.0,2395.9,5.68924572]
[1750534072574,8.25773026,2396.0,2395.9,4.85465572]
[1750534072776,7.42318026,2396.0,2395.8,1.2468553]
[1750534072962,13.78962876,2395.9,2395.6,4.4546553]
[1750534073166,8.25784026,2395.7,2395.6,4.4546553]
[1750534073473,0.83469,2395.6,2395.5,1.2468553]
[1750534073664,0.83469,2395.6,2395.4,1.2468553]
[1750534073665,0.83473,2395.5,2395.4,1.2468553]
[1750534073971,8.25791026,2395.5,2395.4,1.2468553]
[1750534074174,9.68141026,2395.5,2395.4,1.2468553]
[1750534074369,8.84668026,2395.5,2395.4,1.2468553]
[1750534074776,8.84668026,2395.5,2395.4,2.0816153]
[1750534074967,7.42318026,2395.5,2395.4,2.0816153]
[1750534076470,8.25791026,2395.5,2395.4,1.2468553]
[1750534077377,8.25791026,2395.5,2395.4,2.0816153]
[1750534077875,7.42318026,2395.5,2395.4,2.0816153]
[1750534078180,8.25791026,2395.5,2395.4,2.0816153]
[1750534078376,7.42318026,2395.5,2395.4,2.0816153]
[1750534078771,8.25791026,2395.5,2395.4,1.2468553]
[1750534079470,7.42318026,2395.5,2395.4,2.0816153]
[1750534079671,0.83468,2395.7,2395.6,0.83469]
[1750534079978,0.83468,2395.7,2395.6,4.04249]
[1750534080482,0.83465,2395.8,2395.6,4.04249]
[1750534080669,7.42318026,2395.7,2395.6,4.04249]
[1750534081175,0.83465,2395.8,2395.7,0.83466]
[1750534081573,7.42318026,2395.8,2395.7,0.83466]
[1750534081880,8.25780026,2395.8,2395.7,0.6428]
[1750534082375,15.63098026,2395.8,2395.5,1.24587502]
[1750534082582,15.63098026,2395.8,2395.0,3.29371145]
[1750534082583,12.36612876,2395.6,2395.0,1.24587502]
[1750534082783,0.83481,2395.3,2395.2,3.2078]
[1750534083378,8.25799026,2395.3,2395.2,3.2078]
[1750534083579,0.83487,2395.1,2395.0,1.24587502]
[1750534083781,8.25805026,2395.1,2394.9,6.57498502]
[1750534084075,8.25805026,2395.1,2395.0,3.2078]
[1750534084277,8.25805026,2395.1,2394.9,3.36718502]
[1750534084669,7.42318026,2395.1,2395.0,0.8349]
[1750534085177,7.42318026,2395.1,2395.0,4.0427]
[1750534085982,8.25805026,2395.1,2395.0,3.2078]
[1750534086178,0.8349,2395.0,2394.9,1.24587502]
[1750534086383,0.83494,2394.9,2394.7,4.45367502]
[1750534086577,8.72488026,2394.8,2394.7,4.45367502]
[1750534086976,1.3017,2394.8,2394.7,4.45367502]
[1750534087384,8.72488026,2394.8,2394.7,4.45367502]
[1750534087580,14.07745449,2395.3,2394.7,4.45367502]
[1750534087581,0.06847599,2395.3,2394.7,4.45367502]
[1750534087884,0.83483,2395.2,2395.1,3.2078]
[1750534088075,8.25801026,2395.2,2395.1,3.2078]
[1750534088278,0.8349,2395.0,2394.8,1.24587502]
[1750534088581,7.42318026,2395.0,2394.9,0.83494]
[1750534088983,8.25809026,2395.0,2394.8,2.08082502]
[1750534089286,0.83494,2394.9,2394.8,1.24587502]
[1750534089486,7.42318026,2394.9,2394.8,2.08084502]
[1750534089785,7.42318026,2394.9,2394.8,1.24587502]
[1750534089786,0.83494,2394.9,2394.8,1.24587502]
[1750534090380,7.42318026,2394.9,2394.8,2.08084502]
[1750534090685,8.25812026,2394.9,2394.8,1.24587502]
[1750534090984,0.83497,2394.8,2394.7,4.45367502]
[1750534091188,7.42318026,2394.8,2394.7,4.45367502]
[1750534091386,2.22626,2394.9,2394.7,4.45367502]
[1750534091587,8.25815026,2394.8,2394.7,4.45367502]
[1750534091982,2.22626,2394.9,2394.7,5.28868502]
[1750534092181,8.25815026,2394.8,2394.7,3.2078]
[1750534092386,9.64945026,2394.8,2394.7,3.2078]
[1750534092585,2.22627,2394.8,2394.7,4.45367502]
[1750534092785,9.64945026,2394.8,2394.7,3.2078]
[1750534094288,0.83508,2394.5,2394.4,4.45367502]
[1750534094482,8.25826026,2394.5,2394.4,4.45367502]
[1750534094880,8.25826026,2394.5,2394.4,3.2078]
[1750534095374,9.62696026,2394.5,2394.4,3.2078]
[1750534095578,0.06847599,2395.3,2394.4,9.45367502]
[1750534095777,0.06847599,2395.3,2394.7,0.83498]
[1750534095778,7.42318026,2394.9,2394.7,0.83498]
[1750534095980,7.42318026,2394.9,2394.8,3.2078]
[1750534096288,1.17170152,2396.0,2395.5,0.8347]
[1750534096483,4.9429485,2396.1,2395.7,1.24462948]
[1750534096686,1.2994,2395.9,2395.6,4.45242948]
[1750534096891,1.2994,2395.9,2395.6,3.2078]
[1750534098192,1.9783,2395.9,2395.6,3.2078]
[1750534099289,1.2994,2395.9,2395.7,0.83463]
[1750534099485,1.36787599,2395.9,2395.7,0.83463]
[1750534099893,1.36787599,2395.9,2395.8,0.83462]
[1750534100794,0.06847599,2395.9,2395.8,0.83462]
[1750534101890,0.06847599,2395.9,2395.8,2.07950431]
[1750534102193,1.3602,2396.4,2396.3,0.83445]
[1750534102585,2.66,2396.4,2396.3,0.83445]
[1750534103188,2.66,2396.4,2396.2,4.04227]
[1750534103792,3.49441,2396.4,2396.2,3.2078]
[1750534104298,0.83445,2396.3,2396.2,3.2078]
[1750534104596,2.13425,2396.3,2396.0,0.83454]
[1750534104789,2.13425,2396.3,2395.9,4.45331599]
[1750534104790,2.13425,2396.3,2395.9,5.28787599]
[1750534104990,1.2998,2396.3,2395.9,4.45331599]
[1750534105191,1.2998,2396.3,2395.9,5.28789599]
[1750534105391,0.8345,2396.2,2395.9,5.28789599]
[1750534105597,1.3352,2396.1,2396.0,0.83455]
[1750534105896,2.16973,2396.1,2395.9,4.45331599]
[1750534106490,2.16973,2396.1,2395.9,3.2078]
[1750534106886,1.3352,2396.1,2395.9,3.2078]
[1750534107093,0.83457,2396.0,2395.7,2.08015599]
[1750534107288,1.3352,2395.9,2395.7,2.08015599]
[1750534107494,2.87119,2395.9,2395.7,1.24551599]
[1750534107699,2.10507599,2395.9,2395.7,2.08017599]
[1750534107891,0.76987599,2395.9,2395.8,0.83462]
[1750534109609,0.06847599,2395.9,2395.8,0.83462]
[1750534119202,0.90306599,2395.9,2395.8,0.83462]
[1750534119514,0.06847599,2395.9,2395.8,0.83462]
[1750534119706,0.06847599,2395.9,2395.8,2.07835695]
[1750534123612,0.06847599,2395.9,2395.8,0.83462]
[1750534123912,0.83462,2395.8,2395.7,2.49416597]
[1750534124219,0.83462,2395.8,2395.7,2.08102284]
[1750534124515,2.14762,2395.8,2395.7,2.08102284]
[1750534124914,2.14762,2395.8,2395.7,0.83466]
[1750534125115,2.14762,2395.8,2395.6,5.70197597]
[1750534125510,2.14762,2395.8,2395.7,2.48925896]
[1750534126519,2.14762,2395.8,2395.6,6.53172896]
[1750534128311,0.06847599,2395.9,2395.6,8.34347758]
[1750534128512,0.06847599,2395.9,2395.8,2.50191]
[1750534128714,0.90306599,2395.9,2395.7,2.48925896]
[1750534128909,0.06847599,2395.9,2395.7,2.48925896]
[1750534129119,0.90309599,2395.9,2395.7,2.48925896]
[1750534129424,0.83462,2395.8,2395.7,2.48925896]
[1750534129720,2.25262,2395.8,2395.7,2.48925896]
[1750534131422,2.25262,2395.8,2395.7,3.32391896]
[1750534131721,2.25262,2395.8,2395.7,2.48925896]
[1750534132536,0.83462,2395.8,2395.7,2.48925896]
[1750534139041,0.83462,2395.8,2395.7,3.32391896]
[1750534139240,0.83462,2395.8,2395.7,2.48925896]
[1750534140542,2.15562,2395.8,2395.7,2.48925896]
[1750534142644,0.83462,2395.8,2395.7,2.48925896]
[1750534144745,2.12972,2395.8,2395.7,2.48925896]
[1750534146243,2.19819599,2395.8,2395.7,2.48925896]
[1750534146942,0.06847599,2395.8,2395.7,2.48925896]
[1750534147146,0.06847599,2395.8,2395.7,5.97033758]
[1750534147445,0.06847599,2395.8,2395.7,3.48107862]
[1750534147633,0.06847599,2395.8,2395.7,4.84957862]
[1750534149142,0.90309599,2395.8,2395.7,4.84957862]
[1750534149338,0.06847599,2395.8,2395.7,4.84957862]
[1750534149646,0.06847599,2395.8,2395.7,10.54577862]
[1750534150146,0.6789,2396.4,2395.7,10.54577862]
[1750534150147,0.83454,2396.1,2395.7,13.03013057]
[1750534150442,0.83454,2396.1,2396.0,5.70967955]
[1750534150943,0.83454,2396.1,2396.0,6.35997955]
[1750534152142,0.83455,2396.0,2395.9,2.50187955]
[1750534152344,0.83459,2395.9,2395.8,2.50187955]
[1750534152540,0.83459,2395.9,2395.8,2.50181426]
[1750534152739,0.83462,2395.8,2395.7,2.50181426]
[1750534153341,0.90309599,2395.8,2395.7,2.50181426]
[1750534155342,0.90309599,2395.8,2395.6,1.66820311]
[1750534155540,1.4185,2395.7,2395.6,1.66820311]
[1750534156047,2.25316,2395.7,2395.6,1.66820311]
[1750534157450,0.83466,2395.7,2395.6,1.66820311]
[1750534158951,2.14646,2395.7,2395.6,1.66820311]
[1750534160451,2.21493599,2395.7,2395.6,1.66820311]
[1750534161146,2.21493599,2395.7,2395.4,5.70961426]
[1750534161147,0.83473,2395.5,2395.4,1.66820311]
[1750534161351,0.83476,2395.4,2395.3,1.66820311]
[1750534161542,2.87496,2395.4,2395.3,1.25038094]
[1750534161739,0.8348,2395.3,2395.2,1.25038094]
[1750534161943,4.5897,2395.3,2395.0,1.25038094]
[1750534162143,3.48128862,2395.1,2395.0,1.25038094]
[1750534162352,3.48128862,2395.1,2394.8,5.51970311]
[1750534162353,0.8349,2395.0,2394.9,1.25038094]
[1750534162652,2.2168,2395.0,2394.9,1.25038094]
[1750534163845,0.8349,2395.0,2394.9,1.25038094]
[1750534164048,0.6685,2395.2,2394.9,3.89679956]
[1750534164241,1.50333,2395.2,2395.1,3.2078]
[1750534164842,7.85182,2395.3,2395.1,3.2078]
[1750534165044,0.83483,2395.2,2395.1,3.2078]
[1750534167747,2.64641862,2395.2,2395.0,0.6437]
[1750534167945,0.83487,2395.1,2395.0,0.6437]
[1750534168649,1.53047,2395.1,2395.0,0.6437]
[1750534169941,1.53047,2395.1,2394.9,1.92088094]
[1750534170149,0.8349,2395.0,2394.8,5.29315094]
[1750534170350,0.8349,2395.0,2394.9,1.25038094]
[1750534170660,1.53048,2395.1,2394.9,2.08532094]
[1750534170843,0.8349,2395.0,2394.9,1.25038094]
[1750534171258,1.5305,2395.1,2394.9,1.25038094]
[1750534171555,1.53049,2395.1,2394.9,2.08532094]
[1750534171853,0.8349,2395.0,2394.9,1.25038094]
[1750534172756,0.8349,2395.0,2394.8,5.29313094]
[1750534172956,0.8349,2395.0,2394.9,1.25038094]
[1750534173658,0.8349,2395.0,2394.8,5.29313094]
[1750534174251,1.53049,2395.1,2394.9,0.83493]
[1750534174449,0.83485,2395.2,2395.0,0.8349]
[1750534174658,0.83485,2395.2,2395.1,3.2078]
[1750534174956,0.83478,2395.4,2395.2,0.83482]
[1750534175463,0.83478,2395.4,2395.3,0.6545]
[1750534175846,11.5833,2395.6,2395.3,0.6545]
[1750534175847,7.8527,2395.6,2395.4,0.83474]
[1750534176161,7.8527,2395.6,2395.4,4.73254]
[1750534176652,0.83473,2395.5,2395.4,3.8978]
[1750534177557,7.85272,2395.6,2395.4,3.8978]
[1750534177859,7.85272,2395.6,2395.4,4.73254]
[1750534178163,7.85272,2395.6,2395.5,0.83473]
[1750534178861,7.85272,2395.6,2395.4,3.8978]
[1750534179062,7.6875,2395.8,2395.6,0.83468]
[1750534179256,0.83466,2395.7,2395.6,0.83468]
[1750534179759,7.018,2396.0,2395.5,3.89679956]
[1750534179948,0.83464,2395.8,2395.6,2.08505094]
[1750534180151,0.83464,2395.8,2395.7,1.25038094]
[1750534180553,0.8346,2395.9,2395.7,1.25038094]
[1750534180865,0.8346,2395.9,2395.7,5.29281094]
[1750534182165,0.8346,2395.9,2395.7,4.45818094]
[1750534182761,0.8346,2395.9,2395.7,5.29282094]
[1750534183063,0.83462,2395.8,2395.7,4.45818094]
[1750534183261,2.0657,2396.1,2395.7,4.45818094]
[1750534183463,0.8346,2395.9,2395.7,5.29282094]
[1750534183665,0.83461,2395.9,2395.7,5.29282094]
[1750534183856,0.83462,2395.8,2395.7,4.45818094]
[1750534185964,0.83462,2395.8,2395.7,1.25038094]
[1750534188264,2.19542,2395.8,2395.7,1.25038094]
[1750534189654,0.83462,2395.8,2395.7,1.25038094]
[1750534189859,0.90309599,2395.8,2395.7,1.25038094]
[1750534191164,0.83466,2395.7,2395.6,4.45818094]
[1750534192265,0.83466,2395.7,2395.6,1.24672586]
[1750534192464,0.83466,2395.7,2395.6,4.45452586]
[1750534192765,2.89446,2395.7,2395.6,4.45452586]
[1750534194263,2.89446,2395.7,2395.6,3.2078]
[1750534194471,2.89446,2395.7,2395.6,4.45481226]
[1750534195173,2.89446,2395.7,2395.6,3.2078]
[1750534195470,1.51486,2395.7,2395.6,3.2078]
[1750534196071,0.83469,2395.6,2395.5,1.66820311]
[1750534196373,0.83469,2395.6,2395.5,4.87600311]
[1750534198270,2.87698,2395.7,2395.5,4.87600311]
[1750534198570,0.83469,2395.6,2395.5,4.87600311]
[1750534200166,0.83469,2395.6,2395.5,3.2078]
[1750534200370,2.19929,2395.6,2395.5,1.66416173]
[1750534200576,0.83473,2395.5,2395.4,1.66416173]
[1750534202070,0.83476,2395.4,2395.3,1.248624]
[1750534202269,2.19936,2395.4,2395.3,1.248624]
[1750534202572,0.8348,2395.3,2395.2,1.248624]
[1750534202764,2.8912,2395.3,2395.2,1.248624]
[1750534203773,7.005,2395.6,2395.2,7.10284262]
[1750534203970,7.7065,2395.6,2395.3,1.24913791]
[1750534204176,0.83476,2395.4,2395.2,4.04263]
[1750534205473,0.7015,2395.6,2395.3,0.8348]
[1750534205677,1.53619,2395.6,2395.5,3.2078]
[1750534205878,1.53619,2395.6,2395.5,4.45735947]
[1750534206571,0.7015,2395.6,2395.5,4.45735947]
[1750534206772,0.83467,2395.7,2395.5,3.2078]
[1750534207078,0.83467,2395.7,2395.5,4.04252]
[1750534207275,0.83467,2395.7,2395.5,4.73912]
[1750534207472,3.2078,2396.3,2395.6,2.64641862]
[1750534207667,2.44172209,2396.5,2396.2,0.83445]
[1750534207668,0.7078,2396.4,2396.2,0.83445]
[1750534207879,4.18863862,2396.4,2396.3,1.24949704]
[1750534208076,1.54223,2396.4,2396.2,1.91319704]
[1750534208479,0.7078,2396.4,2396.2,1.91319704]
[1750534208677,2.0433,2396.7,2396.3,3.89591566]
[1750534208979,0.83433,2396.7,2396.5,6.68859862]
[1750534209172,0.83429,2396.8,2396.6,1.24764772]
[1750534209372,0.83429,2396.8,2396.7,1.24762967]
[1750534210174,0.83427,2396.8,2396.6,2.08195967]
[1750534210374,0.83427,2396.8,2396.5,7.38516862]
[1750534210680,0.83427,2396.8,2396.6,1.24672662]
[1750534210873,0.83431,2396.7,2396.6,1.24672662]
[1750534211575,0.83431,2396.7,2396.5,5.15112662]
[1750534212275,0.83431,2396.7,2396.5,5.98550662]
[1750534212477,0.8343,2396.8,2396.5,5.98550662]
[1750534212773,1.54206,2396.9,2396.6,0.83434]
[1750534212977,1.54206,2396.9,2396.8,3.2078]
[1750534213176,0.83428,2396.8,2396.5,5.98548662]
[1750534213481,1.3576,2397.1,2396.5,5.15112662]
[1750534213693,0.83422,2397.0,2396.8,3.2078]
[1750534213878,7.004,2397.2,2396.9,0.6581]
[1750534214084,0.8342,2397.0,2396.9,0.6581]
[1750534214587,1.972,2397.3,2396.9,0.6581]
[1750534214783,1.972,2397.3,2397.1,3.2078]
[1750534214980,0.8342,2397.0,2396.9,0.6581]
[1750534215583,1.972,2397.3,2396.9,0.6581]
[1750534215881,0.83414,2397.2,2397.1,3.2078]
[1750534216385,0.8342,2397.0,2396.9,0.6581]
[1750534216880,0.83424,2396.9,2396.8,3.2078]
[1750534217075,1.4002,2396.9,2396.7,0.83429]
[1750534217282,0.83423,2397.0,2396.8,0.83427]
[1750534217482,0.83423,2397.0,2396.7,0.83429]
[1750534217789,0.83424,2396.9,2396.7,0.83429]
[1750534218391,0.83423,2397.0,2396.7,0.83429]
[1750534218776,7.34142,2397.3,2396.9,4.04202]
[1750534218777,9.0373,2397.3,2396.9,4.04202]
[1750534219087,9.0373,2397.3,2396.9,3.2078]
[1750534219297,0.06847599,2397.0,2396.9,3.2078]
[1750534219477,0.90267599,2397.0,2396.9,3.2078]
[1750534220490,0.06847599,2397.0,2396.9,4.04204]
[1750534220797,0.83412,2397.3,2397.1,0.83415]
[1750534221085,0.6749,2397.6,2397.2,3.8779]
[1750534221293,0.83407,2397.4,2397.2,4.71203]
[1750534221493,0.83405,2397.5,2397.3,0.8341]
[1750534221684,0.83401,2397.6,2397.4,1.51706]
[1750534221990,0.83403,2397.5,2397.4,0.683]
[1750534222181,3.2078,2397.7,2397.4,1.51705]
[1750534222385,0.83399,2397.7,2397.6,3.2078]
[1750534223684,0.83407,2397.4,2397.3,3.2078]
[1750534223889,0.83405,2397.5,2397.3,3.2078]
[1750534224791,1.9814,2397.6,2397.3,3.2078]
[1750534225090,0.6443,2397.6,2397.3,3.2078]
[1750534225289,1.47832,2397.6,2397.3,5.32967]
[1750534225894,0.6443,2397.6,2397.3,3.2078]
[1750534226785,0.83407,2397.4,2397.3,3.2078]
[1750534226985,0.83405,2397.5,2397.3,3.2078]
[1750534227181,0.83405,2397.5,2397.3,4.0419]
[1750534227388,0.83405,2397.5,2397.3,3.2078]
[1750534227596,0.83407,2397.4,2397.3,3.2078]
[1750534227791,0.83405,2397.5,2397.3,4.0419]
[1750534227991,0.6443,2397.6,2397.3,4.0419]
[1750534228293,0.83403,2397.5,2397.3,4.0419]
[1750534228691,0.83403,2397.5,2397.3,3.2078]
[1750534228989,0.83407,2397.4,2397.3,3.2078]
[1750534230996,2.64367135,2397.4,2397.0,10.1938]
[1750534231291,0.83417,2397.1,2397.0,3.2078]
[1750534232195,0.706,2397.2,2397.1,0.83417]
[1750534232389,1.54014,2397.2,2397.0,4.04199]
[1750534232895,0.706,2397.2,2397.1,0.83417]
[1750534233100,1.54014,2397.2,2397.1,0.83417]
[1750534233498,0.706,2397.2,2397.1,0.83417]
[1750534233792,0.83404,2397.5,2397.3,0.83408]
[1750534233996,0.83406,2397.5,2397.4,3.2078]
[1750534234599,0.83406,2397.5,2397.4,4.04187]
[1750534234899,0.83406,2397.5,2397.4,3.2078]
[1750534235201,0.83409,2397.4,2397.2,1.54612]
[1750534235802,4.72870135,2397.6,2397.1,4.04195]
[1750534235996,0.83414,2397.2,2397.1,3.2078]
[1750534236598,3.54628734,2397.2,2397.1,3.2078]
[1750534236900,0.83424,2396.9,2396.8,0.6643]
[1750534237099,5.85147135,2397.0,2396.6,3.2078]
[1750534237300,0.83431,2396.7,2396.6,3.2078]
[1750534237500,2.78659,2396.8,2396.6,4.04214]
[1750534238096,0.06847599,2397.2,2396.7,2.64367135]
[1750534238402,0.06847599,2397.2,2397.1,0.83417]
[1750534238896,0.06847599,2397.2,2397.1,3.47784135]
[1750534239299,0.06847599,2397.2,2397.1,4.90274135]
[1750534239705,0.06847599,2397.2,2397.1,11.88874135]
[1750534240399,0.06847599,2397.2,2397.1,7.82017]
[1750534241912,0.90261599,2397.2,2397.1,6.986]
[1750534242107,0.06847599,2397.2,2397.0,0.8342]
[1750534242311,1.49957,2397.1,2397.0,0.8342]
[1750534242614,0.6654,2397.1,2397.0,0.8342]
[1750534243113,1.49957,2397.1,2397.0,0.8342]
[1750534243312,0.6654,2397.1,2397.0,0.8342]
[1750534243916,1.49957,2397.1,2397.0,0.8342]
[1750534244414,0.6654,2397.1,2397.0,4.042]
[1750534245312,0.06847599,2397.2,2397.1,0.83417]
[1750534246605,0.90261599,2397.2,2397.1,0.83417]
[1750534247214,0.06847599,2397.2,2397.1,0.83417]
[1750534247517,0.90261599,2397.2,2397.1,0.83417]
[1750534247710,0.83417,2397.1,2397.0,0.83419]
[1750534247916,0.83417,2397.1,2397.0,4.04199]
[1750534248112,0.90263599,2397.2,2397.1,0.83417]
[1750534249516,0.83418,2397.1,2397.0,0.83418]
[1750534249816,1.52418,2397.1,2397.0,0.83418]
[1750534250019,2.84788,2397.1,2397.0,0.83418]
[1750534250821,1.52418,2397.1,2397.0,0.83418]
[1750534251817,0.83422,2397.0,2396.9,0.83422]
[1750534252219,0.69,2397.1,2396.8,8.3092]
[1750534252220,1.52419,2397.1,2397.0,0.83421]
[1750534252522,0.69,2397.1,2397.0,0.83421]
[1750534253620,0.69,2397.1,2397.0,4.04201]
[1750534254012,0.06847599,2397.2,2397.1,0.83417]
[1750534258819,0.06847599,2397.2,2397.1,2.12797]
[1750534259220,0.6483,2397.7,2397.3,0.83409]
[1750534259526,0.83408,2397.4,2397.3,0.83409]
[1750534260325,0.83414,2397.2,2397.1,0.83415]
[1750534261022,0.90261599,2397.2,2397.1,0.83415]
[1750534261520,0.06847599,2397.2,2396.9,6.964]
[1750534261725,5.85152856,2397.0,2396.5,3.2078]
[1750534262026,0.83433,2396.7,2396.5,4.04215]
[1750534262230,0.83434,2396.6,2396.5,3.2078]
[1750534262523,0.83434,2396.6,2396.5,4.04218]
[1750534262823,2.92405,2396.9,2396.5,3.2078]
[1750534263022,3.2078,2397.0,2396.5,8.14426201]
[1750534263228,0.83431,2396.8,2396.6,0.6458]
[1750534263430,0.83431,2396.8,2396.7,0.83431]
[1750534263825,0.83431,2396.7,2396.6,1.48012]
[1750534264126,0.83434,2396.6,2396.5,3.2078]
[1750534264434,3.8889,2396.7,2396.1,3.2078]
[1750534264730,0.83436,2396.6,2396.5,4.04218]
[1750534264930,1.51543,2396.7,2396.5,4.04218]
[1750534265625,1.3832,2396.9,2396.6,0.83434]
[1750534266026,0.06847599,2396.8,2396.7,0.83431]
[1750534266628,0.06847599,2396.8,2396.7,2.84401]
[1750534267227,0.06847599,2396.8,2396.7,0.6458]
[1750534267433,0.06847599,2396.8,2396.7,1.48011]
[1750534268324,0.90274599,2396.8,2396.7,0.6458]
[1750534269433,0.06847599,2396.8,2396.7,1.48011]
[1750534270929,0.06847599,2396.8,2396.7,13.44511]
[1750534271131,0.6476,2397.4,2397.2,0.83414]
[1750534271329,0.6476,2397.4,2397.0,3.2078]
[1750534271527,0.6476,2397.4,2397.1,0.83417]
[1750534271730,0.83414,2397.2,2397.1,0.83417]
[1750534271934,0.83411,2397.3,2397.2,0.83411]
[1750534272132,0.83416,2397.2,2397.0,4.04198]
[1750534272432,0.83416,2397.2,2396.9,1.3041]
[1750534272433,0.83419,2397.1,2396.9,0.83421]
[1750534272628,0.83416,2397.2,2397.0,0.83421]
[1750534272827,0.83416,2397.2,2397.1,0.83417]
[1750534273031,2.21312,2397.3,2397.0,3.2078]
[1750534273233,0.83417,2397.1,2397.0,4.04198]
[1750534273432,0.83417,2397.1,2397.0,0.83418]
[1750534274336,0.83416,2397.2,2397.1,0.83417]
[1750534274731,0.83416,2397.2,2397.0,4.04198]
[1750534274935,0.83416,2397.2,2397.0,0.83418]
[1750534275136,0.83417,2397.1,2397.0,0.83418]
[1750534275527,1.379,2397.3,2396.8,0.83424]
[1750534275833,1.379,2397.3,2397.2,2.0730667]
[1750534275834,4.5868,2397.3,2397.2,2.0730667]
[1750534276135,0.83414,2397.2,2397.1,1.65190226]
[1750534276337,0.83414,2397.2,2397.0,1.24776878]
[1750534276338,0.8342,2397.1,2397.0,1.24776878]
[1750534276836,0.83421,2397.0,2396.9,1.2479078]
[1750534277039,0.83427,2396.8,2396.7,1.65190226]
[1750534277228,0.90274599,2396.8,2396.7,1.65190226]
[1750534277432,0.06847599,2396.8,2396.7,2.48621226]
[1750534277634,0.90274599,2396.8,2396.7,1.65190226]
[1750534277833,1.40117599,2396.8,2396.7,2.48621226]
[1750534278134,2.23544599,2396.8,2396.7,1.65190226]
[1750534279235,0.83431,2396.7,2396.6,1.65190226]
[1750534279439,2.20731,2396.7,2396.6,1.65190226]
[1750534281045,0.83434,2396.6,2396.5,1.65190226]
[1750534281240,2.20734,2396.6,2396.5,1.65190226]
[1750534281539,0.83438,2396.5,2396.4,1.65190226]
[1750534281939,2.20736,2396.6,2396.4,1.65190226]
[1750534282149,0.83438,2396.5,2396.4,1.65190226]
[1750534282841,2.20736,2396.6,2396.4,2.48631226]
[1750534283042,0.83432,2396.7,2396.5,0.83438]
[1750534283336,3.2078,2397.3,2396.6,12.06385292]
[1750534283541,3.2078,2397.3,2396.9,1.66298987]
[1750534283542,0.83416,2397.2,2396.9,1.66298987]
[1750534283742,0.83416,2397.2,2397.0,2.64499952]
[1750534284043,0.83416,2397.2,2397.0,3.47919952]
[1750534284244,0.83416,2397.2,2397.0,2.64499952]
[1750534285044,0.83417,2397.1,2396.9,2.49720987]
[1750534285635,0.83417,2397.1,2396.9,1.66298987]
[1750534286345,2.88446,2397.2,2396.9,2.49722987]
[1750534286545,2.88446,2397.2,2397.0,0.8342]
[1750534286844,2.88446,2397.2,2396.9,5.14220939]
[1750534287045,2.0503,2397.2,2396.9,1.66298987]
[1750534287232,0.83421,2397.0,2396.9,1.66298987]
[1750534292043,0.83427,2396.8,2396.7,1.66298987]